[Event "Early-Titled-Tuesday-Blitz-January-16-2024"]
[Site "Chess.com"]
[Date "2024.01.16"]
[Round "4"]
[White "yonaltimur"]
[Black "HPanesso"]
[Result "0-1"]
[WhiteElo "2309"]
[BlackElo "2635"]
[TimeControl "180+1"]
[EndTime "8:41:41 PST"]
[Termination "HPanesso won by checkmate"]

1. e4 {[%clk 0:03:00.9]} 1... c5 {[%clk 0:02:57.7]} 2. Nf3 {[%clk 0:03:00.5]}
2... e6 {[%clk 0:02:57.6]} 3. g3 {[%clk 0:03:00.3]} 3... Nc6 {[%clk 0:02:53.3]}
4. Bg2 {[%clk 0:02:58.9]} 4... e5 {[%clk 0:02:53.2]} 5. O-O {[%clk 0:02:58.8]}
5... Nf6 {[%clk 0:02:53.6]} 6. Re1 {[%clk 0:02:58.3]} 6... Be7 {[%clk
0:02:53.7]} 7. c3 {[%clk 0:02:58.8]} 7... O-O {[%clk 0:02:53.7]} 8. d4 {[%clk
0:02:59]} 8... d6 {[%clk 0:02:48.3]} 9. h3 {[%clk 0:02:59.3]} 9... Re8 {[%clk
0:02:45.9]} 10. Na3 {[%clk 0:02:58.6]} 10... h6 {[%clk 0:02:45.4]} 11. Nc2
{[%clk 0:02:58.2]} 11... Bf8 {[%clk 0:02:44.6]} 12. d5 {[%clk 0:02:41.4]} 12...
Ne7 {[%clk 0:02:39.7]} 13. c4 {[%clk 0:02:41.7]} 13... Nh7 {[%clk 0:02:38.2]}
14. b4 {[%clk 0:02:41.7]} 14... cxb4 {[%clk 0:02:36.8]} 15. Nxb4 {[%clk
0:02:42.6]} 15... b6 {[%clk 0:02:33.5]} 16. a4 {[%clk 0:02:36.3]} 16... a5
{[%clk 0:02:33]} 17. Nc2 {[%clk 0:02:18.2]} 17... Ba6 {[%clk 0:02:24.3]} 18. Na3
{[%clk 0:02:17.5]} 18... g6 {[%clk 0:02:14.7]} 19. Rb1 {[%clk 0:02:16.3]} 19...
f5 {[%clk 0:02:12.2]} 20. Be3 {[%clk 0:02:09.6]} 20... Rb8 {[%clk 0:02:12]} 21.
Nd2 {[%clk 0:01:53.2]} 21... h5 {[%clk 0:02:00.2]} 22. Rb2 {[%clk 0:01:46.9]}
22... fxe4 {[%clk 0:01:53.9]} 23. Nxe4 {[%clk 0:01:45.9]} 23... Nf5 {[%clk
0:01:53.9]} 24. Qb1 {[%clk 0:01:37.9]} 24... Nxe3 {[%clk 0:01:47.7]} 25. Rxe3
{[%clk 0:01:38.8]} 25... Re7 {[%clk 0:01:33.4]} 26. Reb3 {[%clk 0:01:37.5]}
26... Reb7 {[%clk 0:01:33.6]} 27. Nb5 {[%clk 0:01:33.2]} 27... Bxb5 {[%clk
0:01:32.4]} 28. Rxb5 {[%clk 0:01:34.1]} 28... Qc7 {[%clk 0:01:21.2]} 29. c5
{[%clk 0:01:08.4]} 29... dxc5 {[%clk 0:01:13.6]} 30. d6 {[%clk 0:01:08.4]} 30...
Qg7 {[%clk 0:00:40.6]} 31. Nxc5 {[%clk 0:01:03.8]} 31... Ra7 {[%clk 0:00:40.8]}
32. Ne6 {[%clk 0:01:00.3]} 32... Qf6 {[%clk 0:00:35.9]} 33. Bd5 {[%clk
0:00:59.1]} 33... Kh8 {[%clk 0:00:34.9]} 34. Rxb6 {[%clk 0:00:58.3]} 34... Rxb6
{[%clk 0:00:34.4]} 35. Rxb6 {[%clk 0:00:59.2]} 35... Rd7 {[%clk 0:00:33.2]} 36.
Qb5 {[%clk 0:00:20.4]} 36... Rxd6 {[%clk 0:00:27.1]} 37. Rxd6 {[%clk 0:00:20.3]}
37... Bxd6 {[%clk 0:00:27.1]} 38. Qxa5 {[%clk 0:00:20.9]} 38... Nf8 {[%clk
0:00:20.4]} 39. Qa8 {[%clk 0:00:20.2]} 39... Kh7 {[%clk 0:00:19.6]} 40. Qb7+
{[%clk 0:00:19.5]} 40... Kh6 {[%clk 0:00:19.7]} 41. Nxf8 {[%clk 0:00:15.4]}
41... Qxf8 {[%clk 0:00:20.6]} 42. a5 {[%clk 0:00:12.3]} 42... Bc5 {[%clk
0:00:20.3]} 43. Qb2 {[%clk 0:00:12.9]} 43... Bd4 {[%clk 0:00:19.4]} 44. Qc1+
{[%clk 0:00:12.5]} 44... Kg7 {[%clk 0:00:19.5]} 45. a6 {[%clk 0:00:13]} 45...
Qxf2+ {[%clk 0:00:18.4]} 46. Kh1 {[%clk 0:00:09.4]} 46... Qxg3 {[%clk
0:00:18.7]} 47. a7 {[%clk 0:00:06.2]} 47... Qxh3# {[%clk 0:00:18.6]} 0-1

[Event "Early-Titled-Tuesday-Blitz-January-16-2024"]
[Site "Chess.com"]
[Date "2024.01.16"]
[Round "4"]
[White "LevonAronian"]
[Black "RobertoJBM"]
[Result "1-0"]
[WhiteElo "3115"]
[BlackElo "2800"]
[TimeControl "180+1"]
[EndTime "8:41:42 PST"]
[Termination "LevonAronian won by resignation"]

1. e4 {[%clk 0:03:00.9]} 1... c6 {[%clk 0:02:59.6]} 2. d4 {[%clk 0:03:00.1]}
2... d5 {[%clk 0:02:59.8]} 3. e5 {[%clk 0:03:00.8]} 3... Bf5 {[%clk 0:02:59.5]}
4. h4 {[%clk 0:03:01.3]} 4... Qb6 {[%clk 0:02:59]} 5. a4 {[%clk 0:02:57.8]} 5...
h6 {[%clk 0:02:57.8]} 6. a5 {[%clk 0:02:56.5]} 6... Qc7 {[%clk 0:02:57.8]} 7.
Nc3 {[%clk 0:02:38.8]} 7... e6 {[%clk 0:02:56.9]} 8. Bd3 {[%clk 0:02:38.7]} 8...
Ne7 {[%clk 0:02:55.7]} 9. h5 {[%clk 0:02:32]} 9... a6 {[%clk 0:02:48.6]} 10. b4
{[%clk 0:02:23.4]} 10... Nd7 {[%clk 0:02:46]} 11. g4 {[%clk 0:02:03]} 11... Bxd3
{[%clk 0:02:44.5]} 12. Qxd3 {[%clk 0:02:03.7]} 12... O-O-O {[%clk 0:02:39.1]}
13. f4 {[%clk 0:01:59.2]} 13... g6 {[%clk 0:02:27]} 14. hxg6 {[%clk 0:01:59]}
14... fxg6 {[%clk 0:02:25.6]} 15. Nf3 {[%clk 0:01:56.3]} 15... Kb8 {[%clk
0:02:24]} 16. Na4 {[%clk 0:01:53.3]} 16... Bg7 {[%clk 0:02:02.6]} 17. Bd2 {[%clk
0:01:43.5]} 17... Ka8 {[%clk 0:02:01.1]} 18. O-O-O {[%clk 0:01:40.3]} 18... Rdf8
{[%clk 0:01:56.7]} 19. Nh4 {[%clk 0:01:37.7]} 19... Rhg8 {[%clk 0:01:47.7]} 20.
Rdf1 {[%clk 0:01:31.4]} 20... Qd8 {[%clk 0:01:44.2]} 21. f5 {[%clk 0:01:22]}
21... gxf5 {[%clk 0:01:41]} 22. gxf5 {[%clk 0:01:22.1]} 22... exf5 {[%clk
0:01:13.3]} 23. Nxf5 {[%clk 0:01:21.9]} 23... Nxf5 {[%clk 0:01:11.6]} 24. Rxf5
{[%clk 0:01:22.5]} 24... Qe7 {[%clk 0:01:07.9]} 25. Rxf8+ {[%clk 0:01:11.2]}
25... Bxf8 {[%clk 0:01:00.5]} 26. Qf5 {[%clk 0:01:05.8]} 26... Ka7 {[%clk
0:00:57.3]} 27. Rf1 {[%clk 0:00:56.3]} 27... Qe8 {[%clk 0:00:16.8]} 28. e6
{[%clk 0:00:35.9]} 28... Nb8 {[%clk 0:00:14.8]} 29. Nb6 {[%clk 0:00:33.6]} 29...
Bd6 {[%clk 0:00:12.3]} 30. Qf7 {[%clk 0:00:32.5]} 30... h5 {[%clk 0:00:09.1]}
31. Bh6 {[%clk 0:00:07.1]} 31... h4 {[%clk 0:00:06.6]} 32. Rh1 {[%clk
0:00:04.3]} 32... Bg3 {[%clk 0:00:05.7]} 33. Kb2 {[%clk 0:00:03.1]} 33... Qd8
{[%clk 0:00:03.2]} 34. e7 {[%clk 0:00:02.7]} 34... Qe8 {[%clk 0:00:03.7]} 35.
Rf1 {[%clk 0:00:01.7]} 35... Qxf7 {[%clk 0:00:03]} 36. Rxf7 {[%clk 0:00:01.2]}
36... Re8 {[%clk 0:00:03.9]} 37. Bg5 {[%clk 0:00:01.6]} 37... Bd6 {[%clk
0:00:02.1]} 38. Rf8 {[%clk 0:00:01.8]} 38... Rxe7 {[%clk 0:00:01.2]} 39. Bxe7
{[%clk 0:00:01.5]} 39... Bxe7 {[%clk 0:00:02.1]} 40. Nc8+ {[%clk 0:00:02]} 40...
Ka8 {[%clk 0:00:02.7]} 41. Nxe7 {[%clk 0:00:02.9]} 1-0

[Event "Early-Titled-Tuesday-Blitz-January-16-2024"]
[Site "Chess.com"]
[Date "2024.01.16"]
[Round "4"]
[White "frederiksvane"]
[Black "Tiqr777"]
[Result "1-0"]
[WhiteElo "2910"]
[BlackElo "2610"]
[TimeControl "180+1"]
[EndTime "8:41:42 PST"]
[Termination "frederiksvane won by resignation"]

1. e4 {[%clk 0:03:00.9]} 1... d6 {[%clk 0:02:58.9]} 2. d4 {[%clk 0:02:50.1]}
2... Nf6 {[%clk 0:02:58.8]} 3. Nc3 {[%clk 0:02:50.7]} 3... e5 {[%clk 0:02:59.2]}
4. Nf3 {[%clk 0:02:51.4]} 4... Nbd7 {[%clk 0:02:59.6]} 5. Bc4 {[%clk 0:02:51.8]}
5... Be7 {[%clk 0:03:00]} 6. O-O {[%clk 0:02:51.5]} 6... O-O {[%clk 0:03:00.1]}
7. a4 {[%clk 0:02:52.1]} 7... c6 {[%clk 0:02:58]} 8. Re1 {[%clk 0:02:51.3]} 8...
a5 {[%clk 0:02:57.8]} 9. h3 {[%clk 0:02:46.3]} 9... Qc7 {[%clk 0:02:57.9]} 10.
d5 {[%clk 0:02:45.3]} 10... Nc5 {[%clk 0:02:57.1]} 11. Ra3 {[%clk 0:02:37.4]}
11... h6 {[%clk 0:02:52.1]} 12. Nd2 {[%clk 0:02:23.4]} 12... Nfd7 {[%clk
0:02:49]} 13. Nf1 {[%clk 0:02:20.8]} 13... Kh7 {[%clk 0:02:43]} 14. Ng3 {[%clk
0:02:15.4]} 14... g6 {[%clk 0:02:43.2]} 15. Be3 {[%clk 0:02:12.8]} 15... Bg5
{[%clk 0:02:40.1]} 16. Bxg5 {[%clk 0:02:10]} 16... hxg5 {[%clk 0:02:40.1]} 17.
Qd2 {[%clk 0:02:10.5]} 17... f6 {[%clk 0:02:34.9]} 18. dxc6 {[%clk 0:02:10.5]}
18... bxc6 {[%clk 0:02:33.6]} 19. Rd1 {[%clk 0:02:11.1]} 19... Nb6 {[%clk
0:02:33.4]} 20. Ba2 {[%clk 0:01:58.2]} 20... Rd8 {[%clk 0:02:32.6]} 21. Nf1
{[%clk 0:01:40.9]} 21... Ba6 {[%clk 0:02:21.6]} 22. Ne3 {[%clk 0:01:41]} 22...
Kg7 {[%clk 0:02:22.1]} 23. f3 {[%clk 0:01:33.4]} 23... Rd7 {[%clk 0:02:15.7]}
24. Bb3 {[%clk 0:01:28.3]} 24... Rad8 {[%clk 0:02:13.2]} 25. Qf2 {[%clk
0:01:28.5]} 25... Rh8 {[%clk 0:02:02.7]} 26. Raa1 {[%clk 0:01:26.1]} 26... Qd8
{[%clk 0:01:46.5]} 27. Ba2 {[%clk 0:01:11.1]} 27... Qe7 {[%clk 0:01:42.5]} 28.
Rd2 {[%clk 0:01:05.5]} 28... Bb7 {[%clk 0:01:42.8]} 29. Nc4 {[%clk 0:00:59.5]}
29... Nxc4 {[%clk 0:01:35.1]} 30. Bxc4 {[%clk 0:01:00.4]} 30... Rhd8 {[%clk
0:01:27.3]} 31. Rad1 {[%clk 0:01:00.2]} 31... Ba8 {[%clk 0:01:13.3]} 32. b3
{[%clk 0:00:58.3]} 32... Qf8 {[%clk 0:00:56]} 33. Kh1 {[%clk 0:00:58]} 33... Bb7
{[%clk 0:00:53.4]} 34. Qxc5 {[%clk 0:00:57.2]} 34... dxc5 {[%clk 0:00:53.2]} 35.
Rxd7+ {[%clk 0:00:57.3]} 35... Rxd7 {[%clk 0:00:52.9]} 36. Rxd7+ {[%clk
0:00:58.2]} 36... Kh6 {[%clk 0:00:53.5]} 37. Rxb7 {[%clk 0:00:55.7]} 37... Qd8
{[%clk 0:00:52.8]} 38. Bd3 {[%clk 0:00:48.4]} 38... Qd4 {[%clk 0:00:51.3]} 39.
Ne2 {[%clk 0:00:48.3]} 39... Qf2 {[%clk 0:00:51.2]} 40. Rf7 {[%clk 0:00:43.6]}
40... g4 {[%clk 0:00:39.2]} 41. fxg4 {[%clk 0:00:43.8]} 41... Kg5 {[%clk
0:00:33.8]} 42. Rc7 {[%clk 0:00:44]} 42... f5 {[%clk 0:00:21.7]} 43. gxf5 {[%clk
0:00:29.4]} 43... gxf5 {[%clk 0:00:21.8]} 44. exf5 {[%clk 0:00:26.9]} 44... e4
{[%clk 0:00:20.1]} 45. Bc4 {[%clk 0:00:21.7]} 45... Qxf5 {[%clk 0:00:09.6]} 46.
Rxc6 {[%clk 0:00:19.7]} 46... Qe5 {[%clk 0:00:09.4]} 47. Re6 {[%clk 0:00:19.3]}
47... Qa1+ {[%clk 0:00:09.4]} 48. Kh2 {[%clk 0:00:19.9]} 1-0

[Event "Early-Titled-Tuesday-Blitz-January-16-2024"]
[Site "Chess.com"]
[Date "2024.01.16"]
[Round "4"]
[White "PapaieDudu"]
[Black "viktorskliarov"]
[Result "0-1"]
[WhiteElo "2413"]
[BlackElo "2667"]
[TimeControl "180+1"]
[EndTime "8:41:43 PST"]
[Termination "viktorskliarov won by resignation"]

1. e4 {[%clk 0:03:00.9]} 1... c5 {[%clk 0:02:57.1]} 2. Nf3 {[%clk 0:03:00.6]}
2... Nc6 {[%clk 0:02:57.4]} 3. d4 {[%clk 0:03:00.6]} 3... cxd4 {[%clk
0:02:57.9]} 4. c3 {[%clk 0:03:01.2]} 4... Nf6 {[%clk 0:02:57.2]} 5. e5 {[%clk
0:03:00.5]} 5... Nd5 {[%clk 0:02:57.2]} 6. cxd4 {[%clk 0:03:00.7]} 6... d6
{[%clk 0:02:55.9]} 7. exd6 {[%clk 0:03:00.8]} 7... Qxd6 {[%clk 0:02:49.3]} 8.
Nc3 {[%clk 0:03:01.2]} 8... Bg4 {[%clk 0:02:42.4]} 9. Bb5 {[%clk 0:03:00.5]}
9... e6 {[%clk 0:02:35.7]} 10. h3 {[%clk 0:02:56.8]} 10... Bxf3 {[%clk
0:02:27.5]} 11. Qxf3 {[%clk 0:02:57.7]} 11... Be7 {[%clk 0:02:27.8]} 12. O-O
{[%clk 0:02:54.9]} 12... O-O {[%clk 0:02:26.2]} 13. Rd1 {[%clk 0:02:55.2]} 13...
Rfd8 {[%clk 0:02:15.8]} 14. a3 {[%clk 0:02:54.5]} 14... a6 {[%clk 0:02:07]} 15.
Ba4 {[%clk 0:02:53.1]} 15... Rac8 {[%clk 0:01:46.9]} 16. Ne4 {[%clk 0:02:27.3]}
16... Qb8 {[%clk 0:01:45.2]} 17. Nc3 {[%clk 0:02:08.3]} 17... b5 {[%clk
0:01:16.3]} 18. Bc2 {[%clk 0:02:05.7]} 18... Nxc3 {[%clk 0:01:16.6]} 19. bxc3
{[%clk 0:02:02.2]} 19... Na5 {[%clk 0:01:16.3]} 20. Bf4 {[%clk 0:01:59.3]} 20...
Qb7 {[%clk 0:00:54]} 21. Be4 {[%clk 0:01:56.6]} 21... Qb6 {[%clk 0:00:36.6]} 22.
Be5 {[%clk 0:01:47.1]} 22... f5 {[%clk 0:00:23.1]} 23. Bb1 {[%clk 0:01:37.1]}
23... Qc6 {[%clk 0:00:20.6]} 24. Qg3 {[%clk 0:01:26.7]} 24... Bf8 {[%clk
0:00:20.9]} 25. Ba2 {[%clk 0:01:20.7]} 25... Nc4 {[%clk 0:00:21.1]} 26. Bf4
{[%clk 0:00:54.2]} 26... Rd7 {[%clk 0:00:20.4]} 27. Rd3 {[%clk 0:00:49.9]} 27...
Bd6 {[%clk 0:00:20.2]} 28. Rad1 {[%clk 0:00:45.3]} 28... Bxf4 {[%clk 0:00:19.2]}
29. Qxf4 {[%clk 0:00:45.8]} 29... Qd6 {[%clk 0:00:17.6]} 30. Qg5 {[%clk
0:00:41.7]} 30... Qxa3 {[%clk 0:00:14.2]} 31. d5 {[%clk 0:00:12]} 31... Qxa2
{[%clk 0:00:13.7]} 32. dxe6 {[%clk 0:00:12.7]} 32... Rxd3 {[%clk 0:00:14]} 33.
Re1 {[%clk 0:00:12.5]} 33... Re8 {[%clk 0:00:07]} 34. Qxf5 {[%clk 0:00:12.1]}
34... Ne5 {[%clk 0:00:03.8]} 35. Rxe5 {[%clk 0:00:09.6]} 35... Rd1+ {[%clk
0:00:03.6]} 36. Kh2 {[%clk 0:00:09.9]} 36... Rf8 {[%clk 0:00:04.1]} 37. e7
{[%clk 0:00:09.9]} 37... Rxf5 {[%clk 0:00:03.3]} 38. Rxf5 {[%clk 0:00:07.7]}
38... Qf7 {[%clk 0:00:03.4]} 39. Rxf7 {[%clk 0:00:04.1]} 39... Kxf7 {[%clk
0:00:03.5]} 0-1

[Event "Early-Titled-Tuesday-Blitz-January-16-2024"]
[Site "Chess.com"]
[Date "2024.01.16"]
[Round "4"]
[White "Kotlyar_K"]
[Black "Malikova777"]
[Result "1/2-1/2"]
[WhiteElo "2558"]
[BlackElo "2297"]
[TimeControl "180+1"]
[EndTime "8:41:44 PST"]
[Termination "Game drawn by repetition"]

1. e4 {[%clk 0:03:00.9]} 1... c6 {[%clk 0:02:59.9]} 2. Nf3 {[%clk 0:03:00.6]}
2... d5 {[%clk 0:03:00.8]} 3. Nc3 {[%clk 0:03:00.4]} 3... Bg4 {[%clk 0:02:59.7]}
4. h3 {[%clk 0:03:00.3]} 4... Bxf3 {[%clk 0:03:00.3]} 5. Qxf3 {[%clk 0:02:59.7]}
5... Nf6 {[%clk 0:03:01.2]} 6. e5 {[%clk 0:02:57.4]} 6... Nfd7 {[%clk
0:03:01.7]} 7. d4 {[%clk 0:02:57.1]} 7... e6 {[%clk 0:03:01.7]} 8. Bf4 {[%clk
0:02:33.9]} 8... c5 {[%clk 0:03:01.8]} 9. dxc5 {[%clk 0:02:33.2]} 9... Bxc5
{[%clk 0:03:00]} 10. Bd3 {[%clk 0:02:30.8]} 10... Nc6 {[%clk 0:02:58.9]} 11. Qg3
{[%clk 0:02:30.8]} 11... g6 {[%clk 0:02:38.8]} 12. O-O {[%clk 0:02:28.1]} 12...
h6 {[%clk 0:02:34.9]} 13. h4 {[%clk 0:02:27.6]} 13... Qe7 {[%clk 0:02:33.1]} 14.
Rfe1 {[%clk 0:02:26.3]} 14... Nd4 {[%clk 0:02:22.5]} 15. Nb5 {[%clk 0:02:21.8]}
15... Nxb5 {[%clk 0:02:20]} 16. Bxb5 {[%clk 0:02:21.1]} 16... a6 {[%clk
0:02:19]} 17. Bd3 {[%clk 0:02:18]} 17... O-O-O {[%clk 0:02:12.3]} 18. c4 {[%clk
0:02:14]} 18... dxc4 {[%clk 0:02:08.1]} 19. Bxc4 {[%clk 0:02:14.9]} 19... Kb8
{[%clk 0:02:07.9]} 20. Rac1 {[%clk 0:02:13.2]} 20... Nb6 {[%clk 0:02:07.4]} 21.
Bb3 {[%clk 0:02:07.7]} 21... Nd5 {[%clk 0:01:58.9]} 22. Bxd5 {[%clk 0:01:56.9]}
22... Rxd5 {[%clk 0:01:59.8]} 23. a3 {[%clk 0:01:55.7]} 23... Bb6 {[%clk
0:01:43.1]} 24. Be3 {[%clk 0:01:48.2]} 24... Bxe3 {[%clk 0:01:42.1]} 25. Qxe3
{[%clk 0:01:49.1]} 25... g5 {[%clk 0:01:40.5]} 26. hxg5 {[%clk 0:01:48.3]} 26...
hxg5 {[%clk 0:01:41.4]} 27. Rcd1 {[%clk 0:01:42.5]} 27... Rhd8 {[%clk
0:01:40.4]} 28. Rxd5 {[%clk 0:01:41.2]} 28... Rxd5 {[%clk 0:01:41.3]} 29. Rc1
{[%clk 0:01:33.1]} 29... g4 {[%clk 0:01:33.5]} 30. Qc3 {[%clk 0:01:32.1]} 30...
Qd7 {[%clk 0:01:32.2]} 31. Qe3 {[%clk 0:01:22.5]} 31... Qb5 {[%clk 0:01:20.9]}
32. Qf4 {[%clk 0:00:55.8]} 32... Qxb2 {[%clk 0:01:19.9]} 33. Re1 {[%clk
0:00:52.4]} 33... Qxa3 {[%clk 0:01:01.8]} 34. Qxf7 {[%clk 0:00:51.5]} 34... Qc3
{[%clk 0:00:51.8]} 35. Re3 {[%clk 0:00:45.7]} 35... Qa1+ {[%clk 0:00:43.5]} 36.
Kh2 {[%clk 0:00:43.6]} 36... Qd4 {[%clk 0:00:26.4]} 37. Qf6 {[%clk 0:00:28.2]}
37... Ka7 {[%clk 0:00:22.4]} 38. g3 {[%clk 0:00:28.2]} 38... Qb6 {[%clk
0:00:18.9]} 39. Kg2 {[%clk 0:00:27.1]} 39... Rd2 {[%clk 0:00:18.6]} 40. Qf4
{[%clk 0:00:19.6]} 40... a5 {[%clk 0:00:17.8]} 41. Re4 {[%clk 0:00:15.5]} 41...
Qc6 {[%clk 0:00:17.3]} 42. Qxd2 {[%clk 0:00:14.9]} 42... Qxe4+ {[%clk
0:00:16.8]} 43. Kh2 {[%clk 0:00:15.8]} 43... a4 {[%clk 0:00:16.9]} 44. Qa5+
{[%clk 0:00:15.3]} 44... Kb8 {[%clk 0:00:16.8]} 45. Qd8+ {[%clk 0:00:16]} 45...
Ka7 {[%clk 0:00:17.2]} 46. Qa5+ {[%clk 0:00:16.9]} 46... Kb8 {[%clk 0:00:17.6]}
47. Qd8+ {[%clk 0:00:17.6]} 47... Ka7 {[%clk 0:00:18.2]} 48. Qa5+ {[%clk
0:00:18.5]} 1/2-1/2

[Event "Early-Titled-Tuesday-Blitz-January-16-2024"]
[Site "Chess.com"]
[Date "2024.01.16"]
[Round "4"]
[White "Darkbluelord"]
[Black "Roedor"]
[Result "1-0"]
[WhiteElo "2189"]
[BlackElo "2394"]
[TimeControl "180+1"]
[EndTime "8:41:44 PST"]
[Termination "Darkbluelord won by resignation"]

1. e4 {[%clk 0:03:00.9]} 1... e5 {[%clk 0:02:52.5]} 2. Nf3 {[%clk 0:03:00.2]}
2... Nc6 {[%clk 0:02:49.8]} 3. d4 {[%clk 0:03:00.2]} 3... exd4 {[%clk
0:02:49.7]} 4. Bc4 {[%clk 0:03:00.3]} 4... Bc5 {[%clk 0:02:49.4]} 5. c3 {[%clk
0:02:59]} 5... Nf6 {[%clk 0:02:48.7]} 6. O-O {[%clk 0:02:54]} 6... Nxe4 {[%clk
0:02:45.1]} 7. cxd4 {[%clk 0:02:54.1]} 7... d5 {[%clk 0:02:44.8]} 8. dxc5 {[%clk
0:02:33.6]} 8... dxc4 {[%clk 0:02:43.9]} 9. Qe2 {[%clk 0:02:33.9]} 9... Qd3
{[%clk 0:02:43.8]} 10. Re1 {[%clk 0:02:32.3]} 10... f5 {[%clk 0:02:35.4]} 11.
Nc3 {[%clk 0:02:25.3]} 11... Qxe2 {[%clk 0:02:31.3]} 12. Rxe2 {[%clk 0:02:24.8]}
12... O-O {[%clk 0:02:21.6]} 13. Nxe4 {[%clk 0:02:16.3]} 13... fxe4 {[%clk
0:02:22.5]} 14. Rxe4 {[%clk 0:02:16.8]} 14... b5 {[%clk 0:01:58.1]} 15. cxb6
{[%clk 0:02:02.6]} 15... cxb6 {[%clk 0:01:59]} 16. Rxc4 {[%clk 0:02:02.8]} 16...
Bb7 {[%clk 0:01:59.5]} 17. Bg5 {[%clk 0:02:00]} 17... Rae8 {[%clk 0:01:56.4]}
18. h4 {[%clk 0:01:59.1]} 18... h6 {[%clk 0:01:55.5]} 19. Be3 {[%clk 0:01:57.5]}
19... Na5 {[%clk 0:01:43.8]} 20. Rc7 {[%clk 0:01:37.2]} 20... Bxf3 {[%clk
0:01:43.4]} 21. gxf3 {[%clk 0:01:37.6]} 21... Rf7 {[%clk 0:01:44]} 22. Rac1
{[%clk 0:01:36.3]} 22... Ree7 {[%clk 0:01:40.6]} 23. Rc8+ {[%clk 0:01:35.6]}
23... Kh7 {[%clk 0:01:40.5]} 24. b4 {[%clk 0:01:35.7]} 24... Nb7 {[%clk
0:01:37.5]} 25. Rd1 {[%clk 0:01:32.1]} 25... Rd7 {[%clk 0:01:36.2]} 26. Re1
{[%clk 0:01:29.4]} 26... Nd6 {[%clk 0:01:35.9]} 27. Rc6 {[%clk 0:01:28.6]} 27...
Nf5 {[%clk 0:01:35.7]} 28. h5 {[%clk 0:01:23]} 28... Nh4 {[%clk 0:01:34]} 29.
Rec1 {[%clk 0:01:14.1]} 29... Nxf3+ {[%clk 0:01:32.7]} 30. Kg2 {[%clk
0:01:14.2]} 30... Ne5 {[%clk 0:01:31.3]} 31. Rc8 {[%clk 0:01:13.1]} 31... Ng4
{[%clk 0:01:20]} 32. R1c3 {[%clk 0:00:59.8]} 32... Nf6 {[%clk 0:01:17.2]} 33. a4
{[%clk 0:00:53.1]} 33... Nxh5 {[%clk 0:01:16.5]} 34. a5 {[%clk 0:00:53.6]} 34...
bxa5 {[%clk 0:01:16.8]} 35. bxa5 {[%clk 0:00:53.7]} 35... Nf6 {[%clk 0:01:16.6]}
36. Rb8 {[%clk 0:00:52.2]} 36... Nd5 {[%clk 0:01:14.6]} 37. Rcc8 {[%clk
0:00:51.5]} 37... Nxe3+ {[%clk 0:01:14.6]} 38. fxe3 {[%clk 0:00:52]} 38... Rd5
{[%clk 0:01:11.7]} 39. Rh8+ {[%clk 0:00:50.8]} 39... Kg6 {[%clk 0:01:11.2]} 40.
Rbc8 {[%clk 0:00:50.9]} 40... Rg5+ {[%clk 0:01:08]} 41. Kh3 {[%clk 0:00:50.4]}
41... Rxa5 {[%clk 0:01:04.7]} 42. Rc6+ {[%clk 0:00:49.6]} 42... Rf6 {[%clk
0:01:05.1]} 43. Rc4 {[%clk 0:00:48.1]} 43... Rh5+ {[%clk 0:01:02.7]} 44. Kg3
{[%clk 0:00:46.3]} 44... Rg5+ {[%clk 0:01:02.9]} 45. Kh4 {[%clk 0:00:43.9]}
45... a5 {[%clk 0:01:01.3]} 46. Ra8 {[%clk 0:00:39.7]} 46... Rf3 {[%clk
0:00:55.4]} 47. Rc6+ {[%clk 0:00:29.9]} 47... Kh7 {[%clk 0:00:54.9]} 48. Rcc8
{[%clk 0:00:23.7]} 48... Rf6 {[%clk 0:00:23.4]} 49. Rh8+ {[%clk 0:00:23.3]}
49... Kg6 {[%clk 0:00:23.7]} 50. Rab8 {[%clk 0:00:20.8]} 50... a4 {[%clk
0:00:21.2]} 51. Ra8 {[%clk 0:00:20.5]} 51... Rf1 {[%clk 0:00:20.1]} 52. Ra6+
{[%clk 0:00:19.1]} 52... Kf5 {[%clk 0:00:20.3]} 53. Rf8+ {[%clk 0:00:18.3]}
53... Ke4 {[%clk 0:00:20.4]} 54. Rxf1 {[%clk 0:00:19.2]} 54... Kxe3 {[%clk
0:00:20.6]} 55. Rxa4 {[%clk 0:00:18.4]} 55... Ke2 {[%clk 0:00:20.5]} 56. Rb1
{[%clk 0:00:17.7]} 1-0